fUST/lending_fUST_20240518
["ID","MTS","AMOUNT","RATE_DAILY","PERIOD"]
[327358718,1716016242398,-500.0,0.00016986,2]
[327358719,1716016242407,-500.0,0.00016986,2]
[327358720,1716016242419,-500.0,0.00016986,2]
[327358721,1716016242429,-223.188601,0.00016986,2]
[327358722,1716016242439,-223.188601,0.00016986,2]
[327358723,1716016242450,-223.188601,0.00016986,2]
[327358724,1716016242459,-223.188601,0.00016986,2]
[327358725,1716016242469,-223.188601,0.00016986,2]
[327358726,1716016242478,-223.188601,0.00016986,2]
[327358727,1716016242487,-229.200561,0.00016986,2]
[327358728,1716016242497,-229.200561,0.00016986,2]
[327358729,1716016242507,-500.0,0.00016986,2]
[327358730,1716016242516,-229.200561,0.00016986,2]
[327358731,1716016242525,-229.200561,0.00016986,2]
[327358732,1716016242534,-653.87,0.00016986,2]
[327358734,1716016242543,-4188.03,0.00016986,2]
[327358736,1716016242553,-5058.19,0.00016986,2]
[327358737,1716016242562,-2310.72,0.00016986,2]
[327358739,1716016242571,-151.0,0.00016986,2]
[327358741,1716016242580,-151.0,0.00016986,2]
[327358743,1716016242589,-151.0,0.00016986,2]
[327358745,1716016242598,-500.0,0.00016986,2]
[327358746,1716016242607,-151.0,0.00016986,2]
[327358747,1716016242616,-151.0,0.00016986,2]
[327358748,1716016242625,-151.0,0.00016986,2]
[327358749,1716016242634,-500.0,0.00016986,2]
[327358750,1716016242643,-500.0,0.00016986,2]
[327358752,1716016242652,-500.0,0.00016986,2]
[327358753,1716016242661,-500.0,0.00016986,2]
[327358754,1716016242670,-500.0,0.00016986,2]
[327358755,1716016242679,-5656.52,0.00016986,2]
[327358756,1716016242688,-500.0,0.00016986,2]
[327358757,1716016242698,-3480.51,0.00016986,2]
[327358758,1716016242707,-1112.732129,0.00016986,2]
[327358759,1716016242717,-500.0,0.00016986,2]
[327358760,1716016242726,-1112.732129,0.00016986,2]
[327358761,1716016242735,-1112.732129,0.00016986,2]
[327358762,1716016242744,-500.0,0.00016986,2]
[327358763,1716016242755,-1112.732129,0.00016986,2]
[327358764,1716016242763,-1112.732129,0.00016986,2]
[327358765,1716016242773,-1112.732129,0.00016986,2]
[327358766,1716016242782,-24540.07,0.00016986,2]
[327358767,1716016242791,-1221.707451,0.00016986,2]
[327358768,1716016242800,-1221.707451,0.00016986,2]
[327358769,1716016242810,-1221.707451,0.00016986,2]
[327358770,1716016242819,-1221.707451,0.00016986,2]
[327358771,1716016242830,-1221.707451,0.00016986,2]
[327358772,1716016242839,-1221.707451,0.00016986,2]
[327358773,1716016242848,-500.0,0.00016986,2]
[327358774,1716016242857,-500.0,0.00016986,2]
[327358775,1716016242866,-151.0,0.00016986,2]
[327358776,1716016242875,-151.0,0.00016986,2]
[327358777,1716016242884,-151.0,0.00016986,2]
[327358778,1716016242893,-585.22,0.00016986,2]
[327358779,1716016242902,-500.0,0.00016986,2]
[327358780,1716016242911,-1114.36,0.00016986,2]
[327358781,1716016242920,-539.838965,0.00016986,2]
[327358783,1716016242929,-539.838965,0.00016986,2]
[327358785,1716016242938,-539.838965,0.00016986,2]
[327358787,1716016242949,-500.0,0.00016986,2]
[327358788,1716016242958,-539.838965,0.00016986,2]
[327358790,1716016242967,-539.838965,0.00016986,2]
[327358791,1716016242976,-539.838965,0.00016986,2]
[327358792,1716016242985,-500.0,0.00016986,2]
[327358794,1716016242994,-2724.917248,0.00016986,2]
[327358796,1716016243003,-2724.917248,0.00016986,2]
[327358798,1716016243013,-2724.917248,0.00016986,2]
[327358800,1716016243023,-623.79392067,0.00016986,2]
[327358802,1716016243033,-2724.917248,0.00016986,2]
[327358803,1716016243042,-151.0,0.00016986,2]
[327358805,1716016243052,-151.0,0.00016986,2]
[327358807,1716016243061,-151.0,0.00016986,2]
[327358809,1716016243071,-2724.917248,0.00016986,2]
[327358811,1716016243080,-2724.917248,0.00016986,2]
[327358812,1716016243089,-500.0,0.00016986,2]
[327358813,1716016243098,-440.35962986,0.00016986,2]
[327358814,1716016243107,-500.0,0.00016986,2]
[327358815,1716016243116,-713.21,0.00016986,2]
[327358816,1716016243126,-384.0,0.00016994,2]
[327358817,1716016243135,-590.0,0.000171,2]
[327358818,1716016243144,-323.5,0.00017153,2]
[327358819,1716016243154,-620.68662305,0.00017204,2]
[327358820,1716016243163,-708.47,0.00017259,2]
[327358821,1716016243172,-708.47,0.00017259,2]
[327358822,1716016243182,-544.23,0.00017259,2]
[327358823,1716016243191,-544.23,0.00017259,2]
[327358824,1716016243200,-169.073688,0.00017259,2]
[327358825,1716016243209,-169.073688,0.00017259,2]
[327358826,1716016243219,-655.64,0.00017259,2]
[327358827,1716016243228,-655.64,0.00017259,2]
[327358828,1716016243238,-229.200561,0.00017259,2]
[327358829,1716016243248,-229.200561,0.00017259,2]
[327358831,1716016243257,-151.0,0.0001726,2]
[327358833,1716016243267,-151.0,0.0001726,2]
[327358835,1716016243277,-500.0,0.0001726,2]
[327358837,1716016243288,-500.0,0.0001726,2]
[327358839,1716016243298,-500.0,0.0001726,2]
[327358841,1716016243306,-585.71960235,0.0001726,2]
[327358843,1716016243316,-500.0,0.0001726,2]
[327358845,1716016243327,-500.0,0.0001726,2]
[327358847,1716016243336,-500.0,0.0001726,2]
[327358849,1716016243346,-500.0,0.0001726,2]
[327358851,1716016243358,-500.0,0.0001726,2]
[327358853,1716016243367,-500.0,0.0001726,2]
[327358855,1716016243376,-169.073688,0.0001726,2]
[327358857,1716016243385,-169.073688,0.0001726,2]
[327358859,1716016243394,-500.0,0.0001726,2]
[327358860,1716016243403,-244.007865,0.0001726,2]
[327358862,1716016243412,-244.007865,0.0001726,2]
[327358864,1716016243422,-244.007865,0.0001726,2]
[327358866,1716016243431,-244.007865,0.0001726,2]
[327358868,1716016243440,-496.08382057,0.0001726,2]
[327358870,1716016243450,-2956.29,0.0001726,2]
[327358872,1716016243459,-151.0,0.0001726,2]
[327358874,1716016243468,-151.0,0.0001726,2]
[327358876,1716016243477,-500.0,0.0001726,2]
[327358877,1716016243486,-206.584602,0.0001726,2]
[327358878,1716016243496,-353.03034236,0.0001726,2]
[327358879,1716016243505,-500.0,0.0001726,2]
[327358880,1716016243514,-500.0,0.0001726,2]
[327358881,1716016243524,-500.0,0.0001726,2]
[327358882,1716016243533,-500.0,0.0001726,2]
[327358883,1716016243542,-500.0,0.0001726,2]
[327358884,1716016243551,-223.188601,0.0001726,2]
[327358885,1716016243561,-223.188601,0.0001726,2]
[327358886,1716016243570,-223.188601,0.0001726,2]
[327358887,1716016243580,-223.188601,0.0001726,2]
[327358888,1716016243589,-229.200561,0.0001726,2]
[327358889,1716016243598,-500.0,0.0001726,2]
[327358890,1716016243607,-229.200561,0.0001726,2]
[327358891,1716016243616,-653.87,0.0001726,2]
[327358892,1716016243626,-4188.03,0.0001726,2]
[327358893,1716016243635,-5058.19,0.0001726,2]
[327358894,1716016243644,-2310.72,0.0001726,2]
[327358895,1716016243654,-151.0,0.0001726,2]
[327358896,1716016243664,-500.0,0.0001726,2]
[327358897,1716016243674,-281.277736,0.0001726,2]
[327358898,1716016243684,-170.18481958,0.0001726,2]
[327358899,1716016243694,-500.0,0.0001726,2]
[327358900,1716016243703,-500.0,0.0001726,2]
[327358901,1716016243712,-500.0,0.0001726,2]
[327358902,1716016243721,-500.0,0.0001726,2]
[327358903,1716016243731,-5656.52,0.0001726,2]
[327358904,1716016243740,-500.0,0.0001726,2]
[327358905,1716016243750,-3480.51,0.0001726,2]
[327358906,1716016243761,-500.0,0.0001726,2]
[327358907,1716016243771,-1112.732129,0.0001726,2]
[327358908,1716016243781,-500.0,0.0001726,2]
[327358909,1716016243790,-1112.732129,0.0001726,2]
[327358910,1716016243800,-7736.44998321,0.0001726,2]
[327358911,1716016244015,-154.98843811,0.00016436,2]
[327358912,1716016244025,-1043.95,0.00016712,2]
[327358913,1716016244034,-2696.99243632,0.00016712,2]
[327358914,1716016244044,-1043.95,0.00016986,2]
[327358915,1716016244053,-1248.91912557,0.0001726,2]
[327358971,1716016249337,266.52104109,9.9e-05,2]
[327358972,1716016254437,344.61,0.00010959,2]
[327358973,1716016260572,311.40765475,0.00012383,2]
[327358974,1716016265047,287.18,0.00010959,2]
[327358975,1716016275552,267.82607691,0.00010959,2]
[327358976,1716016275707,19.35392309,0.00010959,2]
[327358977,1716016286030,191.45,0.00010959,2]
[327358978,1716016297488,159.54,0.00010959,2]
[327358979,1716016297829,1046.14871595,9.999e-05,2]
[327358980,1716016297853,1479.12771208,9.999e-05,2]
[327358981,1716016297873,1424.14729969,9.999e-05,2]
[327358982,1716016297893,1473.11095197,9.999e-05,2]
[327358983,1716016297915,311.40765475,9.999e-05,2]
[327358984,1716017110188,1770.4706846,8.463e-05,2]
[327358985,1716017139123,-154.7215013,9.361e-05,2]
[327358986,1716017139144,-1340.8110164,9.361e-05,2]
[327358987,1716017154080,1000.0,0.0002,20]
[327358988,1716017228171,-285.03925166,9.355e-05,2]
[327358989,1716017228191,-1496.37630434,9.356e-05,2]
[327358990,1716017228211,-1043.25678867,9.357e-05,2]
[327358991,1716017228231,-492.86440031,9.358e-05,2]
[327358992,1716017228250,-835.50091713,9.359e-05,2]
[327358993,1716017228270,-1466.32552429,9.359e-05,2]
[327358994,1716017229091,-1429.89543175,9.359e-05,2]
[327358995,1716017241087,-395.32769299,9.358e-05,2]
[327358996,1716017241109,-166.26141751,9.359e-05,2]
[327358997,1716017241129,-9.37090176,9.359e-05,2]
[327359002,1716017345114,-492.86440031,9.262e-05,2]
[327359003,1716017345136,-546.74672462,9.263e-05,2]
[327359004,1716017345300,-59402.56585443,9.355e-05,2]
[327359005,1716017345320,-6587.10139654,9.356e-05,2]
[327359006,1716017345348,-19620.72349555,9.356e-05,2]
[327359007,1716017345368,-1047.93277894,9.357e-05,2]
[327359008,1716017345389,-557.43832726,9.357e-05,2]
[327359009,1716017345411,-1657.07315237,9.357e-05,2]
[327359010,1716017345432,-396.15311794,9.357e-05,2]
[327359011,1716017345455,-1493.76031716,9.358e-05,2]
[327359012,1716017345476,-285.68327484,9.358e-05,2]
[327359013,1716017345496,-154.93787338,9.362e-05,2]
[327359014,1716017345516,-1865.61502552,9.362e-05,2]
[327359015,1716017345537,-321.66142403,9.366e-05,2]
[327359016,1716017345558,-2114.46454517,9.459e-05,2]
[327359017,1716017345577,-155.09776591,9.474e-05,2]
[327359018,1716017345598,-432.29319529,9.793e-05,2]
[327359019,1716017345618,-2312.91796022,9.999e-05,2]
[327359020,1716017345639,-771.85111591,0.0001,2]
[327359021,1716017345659,-330.96158487,0.00010956,2]
[327359022,1716017345686,-321.66142403,0.00011034,2]
[327359023,1716017345708,-321.66142403,0.00012802,2]
[327359024,1716017345730,-1845.37676581,0.000129,2]
[327359025,1716017345752,-692.262684,0.00013699,2]
[327359026,1716017345773,-413.25192883,0.00014,2]
[327359027,1716017345794,-321.66142403,0.0001457,2]
[327359028,1716017352868,159.73,0.00010959,2]
[327359030,1716017362826,255.55178368,0.00013493,2]
[327359031,1716017363583,798.68,0.00010959,2]
[327359071,1716017432461,-1671.40986894,0.00014893,2]
[327359073,1716017432470,-660.23167755,0.00014991,2]
[327359075,1716017432480,-432.33885408,0.00014992,2]
[327359077,1716017432489,-2564.75899865,0.00014992,2]
[327359079,1716017432501,-8488.28396669,0.00014992,2]
[327359082,1716017432511,-20239.26546952,0.00014994,2]
[327359083,1716017432521,-2400.65057528,0.00015,2]
[327359086,1716017432531,-2107.5414282,0.00015,2]
[327359087,1716017432540,-1149.07076386,0.00015,2]
[327359088,1716017432549,-22748.16364905,0.00015,2]
[327359217,1716017440912,-26207.82489209,0.00014991,2]
[327359219,1716017440922,-4976.31310255,0.00014991,2]
[327359306,1716017447188,-54426.25275188,0.00014991,2]
[327359307,1716017447197,-57251.83635095,0.00015,2]
[327359308,1716017447207,-3699.56949019,0.00015,2]
[327359309,1716017447217,-1704.29237534,0.00015,2]
[327359310,1716017447226,-1683.7621202,0.00015,2]
[327359311,1716017447235,-16797.54909119,0.00016,3]
[327359312,1716017447243,-7967.64444353,0.00016,2]
[327359313,1716017447253,-198.5,0.00016166,2]
[327359314,1716017447262,-198.5,0.00016166,3]
[327359315,1716017447271,-859.45528696,0.00016329,2]
[327359316,1716017447284,-321.66142403,0.00016338,2]
[327359317,1716017447293,-72640.49911304,0.00016338,2]
[327359318,1716017447303,-198.5,0.00016415,2]
[327359319,1716017447312,-154.82968734,0.00016428,2]
[327359320,1716017447321,-2633.51235248,0.00016428,2]
[327359321,1716017447330,-316.01546853,0.00016429,2]
[327359322,1716017447339,-186.86508832,0.00016429,2]
[327359323,1716017447349,-703.1150904,0.00016429,2]
[327359324,1716017447359,-245.13527441,0.00016429,2]
[327359325,1716017447368,-1896.9888826,0.0001643,2]
[327359326,1716017447378,-154.97628639,0.0001643,2]
[327359327,1716017447387,-406.93224573,0.00016431,2]
[327359328,1716017447397,-158.45914912,0.00016431,2]
[327359329,1716017447406,-154.82968734,0.00016435,2]
[327359330,1716017447415,-154.91402485,0.00016435,2]
[327359331,1716017447424,-154.9635035,0.00016435,2]
[327359332,1716017447433,-154.90351916,0.00016435,2]
[327359333,1716017447442,-236.44820243,0.00016435,2]
[327359334,1716017447451,-154.97120917,0.00016436,2]
[327359335,1716017447461,-155.08797204,0.00016436,2]
[327359336,1716017447470,-1350.02169683,0.00016436,2]
[327359337,1716017447479,-8765.51897828,0.00016437,2]
[327359338,1716017447489,-500.0,0.00016438,2]
[327359339,1716017447498,-500.0,0.00016438,2]
[327359340,1716017447507,-477.54477275,0.00016438,2]
[327359341,1716017447516,-501.65332219,0.00016438,2]
[327359342,1716017447525,-500.0,0.00016438,2]
[327359343,1716017447535,-502.24970632,0.00016438,2]
[327359344,1716017447544,-501.22724457,0.00016438,2]
[327359345,1716017447553,-502.669129,0.00016438,2]
[327359346,1716017447563,-500.0,0.00016438,2]
[327359347,1716017447573,-504.60951557,0.00016438,2]
[327359348,1716017447583,-500.0,0.00016438,2]
[327359349,1716017447592,-500.0,0.00016438,2]
[327359350,1716017447601,-502.01281642,0.00016438,2]
[327359351,1716017447610,-500.0,0.00016438,2]
[327359352,1716017447620,-500.0,0.00016438,2]
[327359353,1716017447629,-500.0,0.00016438,2]
[327359354,1716017447639,-500.0,0.00016438,2]
[327359355,1716017447649,-500.0,0.00016438,2]
[327359356,1716017447658,-500.0,0.00016438,2]
[327359357,1716017447790,-500.0,0.00016438,2]
[327359358,1716017447800,-500.0,0.00016438,2]
[327359359,1716017447810,-500.0,0.00016438,2]
[327359360,1716017447820,-500.0,0.00016438,2]
[327359361,1716017447829,-153.75821856,0.00016438,2]
[327359362,1716017447839,-500.0,0.00016438,2]
[327359363,1716017447848,-503.70728683,0.00016438,2]
[327359364,1716017447858,-542.49,0.00016438,2]
[327359365,1716017447867,-500.0,0.00016438,2]
[327359366,1716017447877,-500.0,0.00016438,2]
[327359367,1716017447886,-500.0,0.00016438,2]
[327359368,1716017447896,-504.45141774,0.00016438,2]
[327359369,1716017447907,-500.0,0.00016438,2]
[327359370,1716017447917,-500.0,0.00016438,2]
[327359371,1716017447926,-500.0,0.00016438,2]
[327359372,1716017447936,-500.0,0.00016438,2]
[327359373,1716017447946,-500.0,0.00016438,2]
[327359374,1716017447957,-500.0,0.00016438,2]
[327359375,1716017447966,-202.99,0.00016438,2]
[327359376,1716017447975,-501.61604106,0.00016438,2]
[327359377,1716017447985,-500.0,0.00016438,2]
[327359378,1716017447994,-151.0,0.00016438,2]
[327359379,1716017448004,-500.0,0.00016438,2]
[327359380,1716017448013,-151.0,0.00016438,2]
[327359381,1716017448023,-500.0,0.00016438,2]
[327359382,1716017448033,-500.0,0.00016438,2]
[327359383,1716017448042,-594.16195237,0.00016438,2]
[327359384,1716017448051,-500.0,0.00016438,2]
[327359385,1716017448061,-500.0,0.00016438,2]
[327359386,1716017448070,-500.0,0.00016438,2]
[327359387,1716017448080,-500.0,0.00016438,2]
[327359388,1716017448089,-500.0,0.00016438,2]
[327359389,1716017448098,-151.0,0.00016438,2]
[327359390,1716017448107,-500.0,0.00016438,2]
[327359391,1716017448116,-500.0,0.00016438,2]
[327359392,1716017448125,-163.521809,0.00016438,2]
[327359393,1716017448134,-500.0,0.00016438,2]
[327359394,1716017448143,-500.88972458,0.00016438,2]
[327359395,1716017448152,-645.67,0.00016438,2]
[327359396,1716017448161,-500.97635896,0.00016438,2]
[327359397,1716017448169,-500.0,0.00016438,2]
[327359398,1716017448178,-501.29713418,0.00016438,2]
[327359399,1716017448187,-514.82239602,0.00016438,2]
[327359400,1716017448196,-503.44413654,0.00016438,2]
[327359401,1716017448205,-251.64268877,0.00016438,2]
[327359402,1716017448214,-500.0,0.00016438,2]
[327359403,1716017448223,-500.72556444,0.00016438,2]
[327359404,1716017448232,-501.92810407,0.00016438,2]
[327359405,1716017448241,-504.15360622,0.00016438,2]
[327359406,1716017448250,-151.0,0.00016438,2]
[327359407,1716017448260,-193.930173,0.00016438,2]
[327359408,1716017448269,-502.15328927,0.00016438,2]
[327359409,1716017448278,-151.0,0.00016438,2]
[327359410,1716017448287,-151.0,0.00016438,2]
[327359411,1716017448297,-157.022321,0.00016438,2]
[327359412,1716017448306,-500.0,0.00016438,2]
[327359413,1716017448315,-500.26308356,0.00016438,2]
[327359414,1716017448325,-500.0,0.00016438,2]
[327359415,1716017448334,-500.0,0.00016438,2]
[327359416,1716017448343,-508.29915846,0.00016438,2]
[327359417,1716017448352,-500.0,0.00016438,2]
[327359418,1716017448361,-500.0,0.00016438,2]
[327359419,1716017448370,-502.28717808,0.00016438,2]
[327359420,1716017448380,-504.96468411,0.00016438,2]
[327359421,1716017448389,-1061.9,0.00016438,2]
[327359422,1716017448398,-502.77132959,0.00016438,2]
[327359423,1716017448408,-817.475175,0.00016438,2]
[327359424,1716017448417,-817.475175,0.00016438,2]
[327359425,1716017448426,-500.0,0.00016438,2]
[327359426,1716017448435,-817.475175,0.00016438,2]
[327359427,1716017448445,-817.475175,0.00016438,2]
[327359428,1716017448455,-500.0,0.00016438,2]
[327359429,1716017448464,-500.0,0.00016438,2]
[327359430,1716017448473,-500.0,0.00016438,2]
[327359431,1716017448483,-504.58553473,0.00016438,2]
[327359432,1716017448493,-500.0,0.00016438,2]
[327359433,1716017448503,-500.0,0.00016438,2]
[327359434,1716017448512,-502.74475976,0.00016438,2]
[327359435,1716017448522,-374.638673,0.00016438,2]
[327359436,1716017448531,-502.39133341,0.00016438,2]
[327359437,1716017448541,-500.0,0.00016438,2]
[327359438,1716017448551,-501.71458868,0.00016438,2]
[327359439,1716017448560,-502.0413576,0.00016438,2]
[327359440,1716017448570,-500.0,0.00016438,2]
[327359441,1716017448579,-500.0,0.00016438,2]
[327359442,1716017448589,-506.57543377,0.00016438,2]
[327359443,1716017448598,-500.0,0.00016438,2]
[327359444,1716017448607,-2463.57,0.00016438,2]
[327359445,1716017448617,-500.0,0.00016438,2]
[327359446,1716017448626,-500.0,0.00016438,2]
[327359447,1716017448635,-500.0,0.00016438,2]
[327359448,1716017448645,-500.0,0.00016438,2]
[327359449,1716017448654,-500.0,0.00016438,2]
[327359450,1716017448663,-504.31416992,0.00016438,2]
[327359451,1716017448673,-500.0,0.00016438,2]
[327359452,1716017448682,-500.0,0.00016438,2]
[327359453,1716017448697,-511.46148108,0.00016438,2]
[327359454,1716017448706,-500.0,0.00016438,2]
[327359455,1716017448715,-151.0,0.00016438,2]
[327359456,1716017448724,-295.377198,0.00016438,2]
[327359457,1716017448735,-3548.83,0.00016438,2]
[327359458,1716017448744,-500.0,0.00016438,2]
[327359459,1716017448754,-500.0,0.00016438,2]
[327359460,1716017448764,-151.0,0.00016438,2]
[327359461,1716017448774,-151.0,0.00016438,2]
[327359462,1716017448783,-252.35344501,0.00016438,2]
[327359463,1716017448792,-151.0,0.00016438,2]
[327359464,1716017448801,-151.0,0.00016438,2]
[327359465,1716017448811,-934.55,0.00016438,2]
[327359466,1716017448820,-500.0,0.00016438,2]
[327359467,1716017448830,-505.58,0.00016438,2]
[327359468,1716017448839,-500.0,0.00016438,2]
[327359469,1716017448847,-500.0,0.00016438,2]
[327359470,1716017448857,-500.0,0.00016438,2]
[327359471,1716017448866,-500.0,0.00016438,2]
[327359472,1716017448875,-500.0,0.00016438,2]
[327359473,1716017448885,-1925.6,0.00016438,2]
[327359474,1716017448894,-500.0,0.00016438,2]
[327359475,1716017448903,-500.0,0.00016438,2]
[327359476,1716017448913,-500.0,0.00016438,2]
[327359477,1716017448922,-500.0,0.00016438,2]
[327359478,1716017448932,-500.0,0.00016438,2]
[327359479,1716017448941,-4540.69,0.00016438,2]
[327359480,1716017448950,-500.0,0.00016438,2]
[327359481,1716017448960,-303.77288068,0.00016438,2]
[327359482,1716017448969,-500.0,0.00016438,2]
[327359483,1716017448979,-624.24,0.00016438,2]
[327359484,1716017448988,-525.88,0.00016438,2]
[327359485,1716017448997,-500.0,0.00016438,2]
[327359486,1716017449006,-500.0,0.00016438,2]
[327359487,1716017449015,-500.0,0.00016438,2]
[327359488,1716017449025,-500.0,0.00016438,2]
[327359489,1716017449034,-3284.2,0.00016438,2]
[327359490,1716017449043,-905.75,0.00016438,2]
[327359491,1716017449052,-500.0,0.00016438,2]
[327359492,1716017449062,-500.0,0.00016438,2]
[327359493,1716017449071,-4713.77,0.00016438,2]
[327359494,1716017449081,-500.0,0.00016438,2]
[327359495,1716017449090,-500.0,0.00016438,2]
[327359496,1716017449099,-500.0,0.00016438,2]
[327359497,1716017449109,-500.0,0.00016438,2]
[327359498,1716017449118,-500.0,0.00016438,2]
[327359499,1716017449127,-501.70884126,0.00016438,2]
[327359500,1716017449136,-645.86695404,0.00016438,2]
[327359501,1716017449145,-500.0,0.00016438,2]
[327359502,1716017449155,-500.0,0.00016438,2]
[327359503,1716017449164,-25178.98,0.00016438,2]
[327359504,1716017449175,-512.07,0.00016438,2]
[327359505,1716017449184,-500.0,0.00016438,2]
[327359506,1716017449193,-504.62076484,0.00016438,2]
[327359507,1716017449204,-500.0,0.00016438,2]
[327359508,1716017449215,-1949.54,0.00016438,2]
[327359509,1716017449224,-375.8406788,0.00016438,2]
[327359510,1716017449233,-500.0,0.00016438,2]
[327359511,1716017449241,-500.0,0.00016438,2]
[327359512,1716017449251,-500.0,0.00016438,2]
[327359513,1716017449261,-501.73536619,0.00016438,2]
[327359514,1716017449270,-500.0,0.00016438,2]
[327359515,1716017449279,-500.0,0.00016438,2]
[327359516,1716017449288,-500.0,0.00016438,2]
[327359517,1716017449298,-500.0,0.00016438,2]
[327359518,1716017449307,-500.0,0.00016438,2]
[327359519,1716017449316,-500.0,0.00016438,2]
[327359520,1716017449325,-500.0,0.00016438,2]
[327359521,1716017449334,-354.03804183,0.00016438,2]
[327359522,1716017449344,-732.46,0.00016438,2]
[327359523,1716017449352,-500.0,0.00016438,2]
[327359524,1716017449362,-500.0,0.00016438,2]
[327359525,1716017449371,-265.73167693,0.00016438,2]
[327359526,1716017449380,-500.0,0.00016438,2]
[327359527,1716017449390,-501.02599194,0.00016438,2]
[327359528,1716017449399,-913.46,0.00016438,2]
[327359529,1716017449409,-151.0,0.00016438,2]
[327359530,1716017449418,-151.0,0.00016438,2]
[327359531,1716017449428,-151.0,0.00016438,2]
[327359532,1716017449437,-500.0,0.00016499,2]
[327359533,1716017449446,-12703.0,0.000165,2]
[327359534,1716017449455,-333.819638,0.000165,2]
[327359535,1716017449465,-333.819638,0.000165,2]
[327359536,1716017449474,-366.512236,0.000165,2]
[327359537,1716017449482,-366.512236,0.000165,2]
[327359538,1716017449491,-161.95169,0.000165,2]
[327359539,1716017449500,-161.95169,0.000165,2]
[327359540,1716017449510,-500.0,0.00016508,2]
[327359541,1716017449519,-155.17145698,0.00016509,2]
[327359542,1716017449528,-1402.75151276,0.00016509,2]
[327359543,1716017449538,-1084.20890532,0.00016509,2]
[327359544,1716017449547,-942.22196607,0.00016509,2]
[327359545,1716017449557,-522.43468076,0.00016509,2]
[327359546,1716017449566,-817.58871518,0.0001651,2]
[327359547,1716017449575,-151.0,0.00016511,2]
[327359548,1716017449585,-198.810575,0.00016511,2]
[327359549,1716017449594,-500.0,0.00016511,2]
[327359550,1716017449604,-245.46180799,0.00016511,2]
[327359551,1716017449613,-1606.29421226,0.00016511,2]
[327359552,1716017449622,-154.70605849,0.00016511,2]
[327359553,1716017449631,-154.8509805,0.00016511,2]
[327359554,1716017449641,-495.0,0.00016592,2]
[327359555,1716017449650,-150.0,0.00016592,2]
[327359556,1716017449659,-500.0,0.00016611,2]
[327359557,1716017449668,-251.01519578,0.00016611,2]
[327359558,1716017449678,-151.0,0.00016611,2]
[327359559,1716017449688,-817.475175,0.00016612,2]
[327359560,1716017449699,-817.475175,0.00016612,2]
[327359561,1716017449710,-198.5,0.00016663,2]
[327359562,1716017449719,-245.21863889,0.00016711,2]
[327359563,1716017449728,-500.0,0.00016712,2]
[327359564,1716017449738,-500.0,0.00016712,2]
[327359565,1716017449747,-150.15499931,0.00016712,2]
[327359566,1716017449757,-500.0,0.00016712,2]
[327359567,1716017449766,-383.29,0.00016712,2]
[327359568,1716017449775,-318.13865957,0.00016712,2]
[327359569,1716017449785,-250.71,0.00016712,2]
[327359570,1716017449794,-187.4,0.00016712,2]
[327359571,1716017449803,-210.62589482,0.00016712,2]
[327359572,1716017449812,-500.0,0.00016712,2]
[327359573,1716017449821,-500.0,0.00016712,2]
[327359574,1716017449831,-151.0,0.00016712,2]
[327359575,1716017449840,-500.0,0.00016712,2]
[327359576,1716017449849,-500.0,0.00016712,2]
[327359577,1716017449858,-322.22,0.00016712,2]
[327359578,1716017449867,-412.97,0.00016712,2]
[327359579,1716017449876,-441.47,0.00016712,2]
[327359580,1716017449885,-500.0,0.00016712,2]
[327359581,1716017449894,-500.0,0.00016712,2]
[327359582,1716017449903,-151.0,0.00016712,2]